fUST/lending_fUST_20250622
["ID","MTS","AMOUNT","RATE_DAILY","PERIOD"]
[366963867,1750601435320,-374.91590105,0.00020332,2]
[366963868,1750601435330,-500.0,0.00020346,2]
[366963869,1750601435339,-155.0,0.00020346,2]
[366963870,1750601435350,-300.0,0.00020357,2]
[366963871,1750601435360,-151.0,0.000204,4]
[366963872,1750601435370,-151.0,0.000204,3]
[366963873,1750601435379,-1000.0,0.00020421,2]
[366963874,1750601435389,-162.82399367,0.00020421,2]
[366963875,1750601435399,-1000.0,0.00020421,2]
[366963876,1750601435408,-1000.0,0.00020421,2]
[366963877,1750601435417,-1009.14798399,0.00020421,2]
[366963878,1750601435427,-1000.0,0.00020421,2]
[366963879,1750601435437,-1000.0,0.00020421,2]
[366963880,1750601435446,-1000.0,0.00020421,2]
[366963881,1750601435456,-1303.9815084,0.00020499,2]
[366963882,1750601435465,-151.0,0.000205,4]
[366963883,1750601435475,-151.0,0.000205,4]
[366963884,1750601435485,-7685.51823071,0.0002051,3]
[366963885,1750601435494,-1000.0,0.00020521,2]
[366963886,1750601435504,-424.455268,0.0002053,2]
[366963887,1750601435514,-500.0,0.00020547,7]
[366963888,1750601435523,-500.0,0.00020548,2]
[366963889,1750601435533,-500.0,0.00020548,2]
[366963890,1750601435543,-500.0,0.00020548,2]
[366963891,1750601435553,-500.0,0.00020548,2]
[366963892,1750601435563,-500.0,0.00020548,2]
[366963893,1750601435574,-395.989532,0.00020548,2]
[366963894,1750601435584,-5000.0,0.00020589,2]
[366963895,1750601435594,-151.0,0.000206,4]
[366963896,1750601435603,-500.0,0.0002062,2]
[366963897,1750601435613,-3749.0,0.00020651,2]
[366963898,1750601435623,-151.0,0.000207,4]
[366963899,1750601435632,-151.0,0.000207,3]
[366963900,1750601435642,-300.0,0.00020735,2]
[366963901,1750601435651,-151.0,0.00020735,2]
[366963902,1750601435661,-151.0,0.00020735,2]
[366963903,1750601435670,-151.0,0.00020735,2]
[366963904,1750601435680,-207.4,0.00020735,2]
[366963905,1750601435690,-151.0,0.00020735,2]
[366963906,1750601435700,-151.0,0.00020735,2]
[366963907,1750601435709,-1688.0,0.00020735,2]
[366963908,1750601435718,-300.0,0.00020735,2]
[366963909,1750601435728,-151.0,0.00020735,2]
[366963910,1750601435738,-300.0,0.00020735,2]
[366963911,1750601435748,-151.0,0.00020735,2]
[366963912,1750601435757,-300.0,0.00020735,2]
[366963913,1750601435767,-2000.0,0.00020735,2]
[366963914,1750601435776,-151.0,0.00020735,2]
[366963915,1750601435786,-2000.0,0.00020735,2]
[366963916,1750601435795,-300.0,0.00020735,2]
[366963917,1750601435806,-226.76390347,0.00020735,2]
[366963918,1750601435815,-300.0,0.00020735,2]
[366963919,1750601435825,-2000.0,0.00020735,2]
[366963920,1750601435836,-300.0,0.00020735,2]
[366963921,1750601435846,-2000.0,0.00020735,2]
[366963922,1750601435855,-300.0,0.00020735,2]
[366963923,1750601435865,-2000.0,0.00020735,2]
[366963924,1750601435875,-300.0,0.00020735,2]
[366963925,1750601435885,-300.0,0.00020735,2]
[366963926,1750601435895,-2000.0,0.00020735,2]
[366963927,1750601435905,-300.0,0.00020735,2]
[366963928,1750601435914,-2000.0,0.00020735,2]
[366963929,1750601435924,-300.0,0.00020735,2]
[366963930,1750601435933,-2000.0,0.00020735,2]
[366963931,1750601435942,-300.0,0.00020735,2]
[366963932,1750601435952,-2000.0,0.00020735,2]
[366963933,1750601435963,-300.0,0.00020735,2]
[366963934,1750601435973,-2000.0,0.00020735,2]
[366963935,1750601435982,-300.0,0.00020735,2]
[366963936,1750601435992,-2000.0,0.00020735,2]
[366963937,1750601436002,-300.0,0.00020735,2]
[366963938,1750601436012,-2000.0,0.00020735,2]
[366963939,1750601436022,-2000.0,0.00020735,2]
[366963940,1750601436032,-5000.0,0.00020735,2]
[366963941,1750601436042,-2000.0,0.00020735,2]
[366963942,1750601436053,-2000.0,0.00020735,2]
[366963943,1750601436062,-25000.0,0.00020735,2]
[366963944,1750601436072,-16471.64588936,0.00020735,2]
[366963945,1750601436082,-424.455268,0.00020746,2]
[366963946,1750601436092,-1750.456,0.0002079,2]
[366963947,1750601436103,-151.0,0.000208,3]
[366963948,1750601436118,-151.0,0.000208,4]
[366963949,1750601436128,-1815.222872,0.00020845,2]
[366963950,1750601436138,-230.0,0.0002085,2]
[366963951,1750601436149,-424.455268,0.00020859,2]
[366963952,1750601436159,-500.0,0.00020894,2]
[366963953,1750601436169,-1303.9815084,0.00020899,2]
[366963954,1750601436179,-420.0,0.00020899,2]
[366963955,1750601436190,-151.0,0.000209,4]
[366963956,1750601436199,-151.0,0.000209,3]
[366963957,1750601436209,-151.0,0.000209,3]
[366963958,1750601436219,-1882.38611826,0.000209,2]
[366963959,1750601436229,-160.0,0.00020951,3]
[366963960,1750601436239,-1952.03440464,0.00020955,2]
[366963961,1750601436249,-846.39664074,0.00020963,10]
[366963962,1750601436259,-12551.52821599,0.00020963,10]
[366963963,1750601436270,-213.59462818,0.00020963,10]
[366963964,1750601436280,-524.02598587,0.00020963,10]
[366963965,1750601436290,-1500.0,0.00020968,2]
[366963966,1750601436299,-1500.0,0.00020968,2]
[366963967,1750601436309,-1500.0,0.00020968,2]
[366963968,1750601436319,-1270.77356615,0.00020968,2]
[366963969,1750601436329,-1500.0,0.00020968,2]
[366963970,1750601436339,-1500.0,0.00020968,2]
[366963971,1750601436349,-284.06,0.00020977,2]
[366963972,1750601436361,-1000.0,0.00020988,2]
[366963973,1750601436370,-1000.0,0.00020989,2]
[366963974,1750601436381,-1000.0,0.00020989,2]
[366963975,1750601436391,-1000.0,0.00020989,2]
[366963976,1750601436401,-1000.0,0.00020989,2]
[366963977,1750601436410,-1000.0,0.00020989,2]
[366963978,1750601436420,-230.0,0.00020994,2]
[366963979,1750601436430,-151.0,0.00021,4]
[366963980,1750601436439,-160.0,0.00021,2]
[366963981,1750601436449,-2024.25967761,0.0002101,2]
[366963982,1750601436459,-3749.0,0.00021049,2]
[366963983,1750601436468,-500.0,0.00021064,2]
[366963984,1750601436478,-2099.15728568,0.00021065,2]
[366963985,1750601436488,-1500.0,0.00021068,2]
[366963986,1750601436497,-500.0,0.00021095,8]
[366963987,1750601436507,-151.0,0.000211,3]
[366963988,1750601436517,-151.0,0.000211,4]
[366963989,1750601436527,-151.0,0.000211,4]
[366963990,1750601436536,-2176.82610525,0.0002112,2]
[366963991,1750601436546,-1000.0,0.00021151,2]
[366963992,1750601436555,-500.0,0.00021168,2]
[366963993,1750601436565,-2257.36867115,0.00021175,2]
[366963994,1750601436575,-917.39,0.00021195,2]
[366963995,1750601436584,-177.1805861,0.00021195,2]
[366963996,1750601436594,-151.0,0.000212,4]
[366963997,1750601436605,-151.0,0.000212,3]
[366963998,1750601436614,-17688.07106516,0.000212,2]
[366963999,1750601436624,-151.0,0.000212,4]
[366964000,1750601436634,-230.0,0.0002121,2]
[366964001,1750601436645,-424.455268,0.00021216,2]
[366964002,1750601436654,-2340.89131198,0.0002123,2]
[366964003,1750601436664,-3749.0,0.00021262,2]
[366964004,1750601436674,-337.2951255,0.00021281,2]
[366964005,1750601436684,-151.0,0.00021283,2]
[366964006,1750601436693,-5000.0,0.00021283,2]
[366964007,1750601436703,-25000.0,0.00021283,2]
[366964008,1750601436713,-2427.50429052,0.00021285,2]
[366964009,1750601436722,-1303.9815084,0.00021299,2]
[366964010,1750601436732,-151.0,0.000213,4]
[366964011,1750601436742,-151.0,0.000213,4]
[366964012,1750601436752,-151.0,0.000213,4]
[366964013,1750601436762,-651.36,0.00021312,3]
[366964014,1750601436771,-325.68,0.00021312,3]
[366964015,1750601436781,-9789.98,0.00021316,3]
[366964016,1750601436791,-5210.8,0.00021316,3]
[366964017,1750601436800,-2605.4,0.00021316,3]
[366964018,1750601436809,-1302.7,0.00021316,3]
[366964019,1750601436818,-160.0,0.00021316,3]
[366964020,1750601436828,-846.39664074,0.00021316,3]
[366964021,1750601436838,-12551.52821599,0.00021316,3]
[366964022,1750601436848,-213.59462818,0.00021316,3]
[366964023,1750601436858,-598.81773695,0.0002134,2]
[366964024,1750601436868,-1000.0,0.00021399,2]
[366964025,1750601436878,-151.0,0.000214,4]
[366964026,1750601436887,-151.0,0.000214,4]
[366964027,1750601436897,-213.59462818,0.00021426,2]
[366964028,1750601436907,-160.0,0.00021426,2]
[366964029,1750601436917,-160.0,0.00021426,2]
[366964030,1750601436927,-230.14598372,0.00021426,2]
[366964031,1750601436936,-12551.52821599,0.00021426,2]
[366964032,1750601436946,-160.0,0.00021426,2]
[366964033,1750601436956,-836.56272071,0.00021426,2]
[366964034,1750601436965,-160.0,0.00021426,2]
[366964035,1750601436975,-160.0,0.00021426,2]
[366964036,1750601436985,-160.0,0.00021426,2]
[366964037,1750601436995,-425.01221603,0.00021426,2]
[366964038,1750601437006,-846.39664074,0.00021426,2]
[366964039,1750601437015,-160.0,0.00021426,2]
[366964040,1750601437025,-1000.0,0.00021441,2]
[366964041,1750601437035,-500.0,0.00021442,2]
[366964042,1750601437046,-2582.633082,0.00021478,4]
[366964043,1750601437057,-151.0,0.000215,3]
[366964044,1750601437067,-151.0,0.000215,4]
[366964045,1750601437076,-151.0,0.000215,4]
[366964046,1750601437086,-424.455268,0.00021512,2]
[366964047,1750601437096,-2000.0,0.00021516,2]
[366964048,1750601437106,-2000.0,0.00021516,2]
[366964049,1750601437118,-2000.0,0.00021516,2]
[366964050,1750601437128,-868.41897104,0.00021516,2]
[366964051,1750601437137,-2000.0,0.00021516,2]
[366964052,1750601437147,-160.0,0.00021536,2]
[366964053,1750601437158,-160.0,0.00021536,2]
[366964054,1750601437167,-168.58296045,0.00021552,2]
[366964055,1750601437177,-420.0,0.00021561,2]
[366964056,1750601437188,-420.0,0.00021561,2]
[366964057,1750601437198,-420.0,0.00021561,2]
[366964058,1750601437208,-151.0,0.000216,3]
[366964059,1750601437217,-151.0,0.000216,3]
[366964060,1750601437227,-683.80879912,0.00021616,2]
[366964061,1750601437237,-421.89499895,0.00021617,2]
[366964062,1750601437249,-436993.35286,0.00021623,2]
[366964063,1750601437260,-500.0,0.00021643,9]
[366964064,1750601437270,-1680.0,0.00021665,2]
[366964065,1750601437279,-1149.2995514,0.00021665,2]
[366964066,1750601437289,-202.6933098,0.00021665,2]
[366964067,1750601437299,-177.3077519,0.00021665,2]
[366964068,1750601437308,-159.1115641,0.00021665,2]
[366964069,1750601437319,-160.4183433,0.00021665,2]
[366964070,1750601437328,-177.3077519,0.00021665,2]
[366964071,1750601437339,-574.6497757,0.00021665,2]
[366964072,1750601437349,-153.0,0.00021665,2]
[366964073,1750601437359,-177.3077519,0.00021665,2]
[366964074,1750601437369,-574.6497757,0.00021665,2]
[366964075,1750601437380,-153.0,0.00021665,2]
[366964076,1750601437389,-574.6497757,0.00021665,2]
[366964077,1750601437399,-2047.78,0.00021667,2]
[366964078,1750601437623,-4940.21929232,0.00021698,2]
[366964079,1750601437634,-50357.63629545,0.00021698,2]
[366964080,1750601437644,-3787.76864547,0.00021698,2]
[366964081,1750601437653,-1303.9815084,0.00021699,2]
[366964082,1750601437663,-10533.03,0.000217,2]
[366964083,1750601437672,-6010.36,0.000217,2]
[366964084,1750601437682,-151.0,0.000217,4]
[366964085,1750601437691,-151.0,0.000217,4]
[366964086,1750601437701,-500.0,0.00021716,2]
[366964087,1750601437710,-1000.0,0.00021727,2]
[366964088,1750601437720,-424.4552688,0.00021763,2]
[366964089,1750601437730,-151.0,0.000218,4]
[366964090,1750601437739,-50000.0,0.000218,7]
[366964091,1750601437749,-57301.0,0.000218,2]
[366964092,1750601437758,-160.0,0.000218,7]
[366964093,1750601437768,-160.0,0.000218,7]
[366964094,1750601437778,-846.39664074,0.000218,7]
[366964095,1750601437788,-12551.52821599,0.000218,7]
[366964096,1750601437798,-213.59462818,0.000218,7]
[366964097,1750601437807,-213.60542365,0.0002181,2]
[366964098,1750601437817,-1000.0,0.00021816,2]
[366964099,1750601437827,-1000.0,0.00021816,2]
[366964100,1750601437837,-8155.4715149,0.00021817,2]
[366964101,1750601437847,-5888.0,0.00021818,2]
[366964102,1750601437859,-191.00305507,0.00021831,2]
[366964103,1750601437869,-25000.0,0.00021831,2]
[366964104,1750601437878,-2161.0,0.00021877,2]
[366964105,1750601437889,-415.0,0.00021884,2]
[366964106,1750601437899,-406.0,0.00021884,2]
[366964107,1750601437909,-1000.0,0.00021899,2]
[366964108,1750601437919,-6689.95038901,0.000219,2]
[366964109,1750601437929,-1000.0,0.00021916,2]
[366964110,1750601437940,-1000.0,0.00021916,2]
[366964111,1750601437950,-1000.0,0.00021916,2]
[366964112,1750601437960,-1000.0,0.00021916,2]
[366964113,1750601437970,-1004.45132604,0.00021916,2]
[366964114,1750601437979,-59269.30897057,0.00021917,2]
[366964115,1750601437989,-34196.60109544,0.00021917,2]
[366964116,1750601438000,-1052.06,0.00021917,3]
[366964117,1750601438010,-1052.06,0.00021917,3]
[366964118,1750601438020,-1052.06,0.00021917,3]
[366964119,1750601438030,-1052.06,0.00021917,3]
[366964120,1750601438040,-1052.06,0.00021917,3]
[366964121,1750601438049,-1052.06,0.00021917,3]
[366964122,1750601438059,-1052.06,0.00021917,3]
[366964123,1750601438069,-1052.06,0.00021917,3]
[366964124,1750601438078,-1052.06,0.00021917,3]
[366964126,1750601438088,-1052.06,0.00021917,3]
[366964127,1750601438097,-1052.06,0.00021917,3]
[366964128,1750601438109,-1052.06,0.00021917,3]
[366964130,1750601438121,-1052.06,0.00021917,3]
[366964131,1750601438131,-491.31,0.00021917,3]
[366964132,1750601438140,-491.31,0.00021917,3]
[366964133,1750601438149,-491.31,0.00021917,3]
[366964135,1750601438160,-491.31,0.00021917,3]
[366964137,1750601438170,-491.31,0.00021917,3]
[366964138,1750601438179,-491.31,0.00021917,3]
[366964139,1750601438189,-491.31,0.00021917,3]
[366964140,1750601438198,-491.31,0.00021917,3]
[366964141,1750601438209,-491.31,0.00021917,3]
[366964142,1750601438219,-491.31,0.00021917,3]
[366964143,1750601438229,-491.31,0.00021917,3]
[366964144,1750601438238,-491.31,0.00021917,3]
[366964145,1750601438248,-491.31,0.00021917,3]
[366964146,1750601438258,-491.31,0.00021917,3]
[366964147,1750601438267,-491.31,0.00021917,3]
[366964148,1750601438277,-491.31,0.00021917,3]
[366964149,1750601438286,-491.31,0.00021917,3]
[366964150,1750601438295,-491.31,0.00021917,3]
[366964151,1750601438305,-491.31,0.00021917,3]
[366964152,1750601438314,-491.31,0.00021917,3]
[366964153,1750601438324,-491.31,0.00021917,3]
[366964154,1750601438333,-491.31,0.00021917,3]
[366964155,1750601438342,-491.31,0.00021917,3]
[366964156,1750601438352,-491.44833863,0.00021917,3]
[366964157,1750601438364,-460.0,0.00021917,3]
[366964158,1750601438373,-460.0,0.00021917,3]
[366964159,1750601438383,-400.0,0.00021917,3]
[366964160,1750601438393,-462.41176606,0.00021917,3]
[366964161,1750601438402,-460.0,0.00021917,3]
[366964162,1750601438411,-460.0,0.00021917,3]
[366964163,1750601438421,-367.28144226,0.00021917,3]
[366964165,1750601438431,-460.0,0.00021917,3]
[366964167,1750601438441,-460.0,0.00021917,3]
[366964169,1750601438450,-264.48911976,0.00021917,3]
[366964171,1750601438459,-459.9867923,0.00021917,3]
[366964172,1750601438469,-460.0,0.00021917,3]
[366964173,1750601438479,-460.0,0.00021917,3]
[366964174,1750601438488,-460.0,0.00021917,3]
[366964175,1750601438497,-460.0,0.00021917,3]
[366964176,1750601438507,-460.0,0.00021917,3]
[366964177,1750601438516,-460.0,0.00021917,3]
[366964178,1750601438526,-460.0,0.00021917,3]
[366964179,1750601438535,-460.0,0.00021917,3]
[366964180,1750601438545,-460.0,0.00021917,3]
[366964181,1750601438555,-460.0,0.00021917,3]
[366964182,1750601438564,-400.40347559,0.00021917,3]
[366964183,1750601438574,-460.0,0.00021917,3]
[366964184,1750601438584,-460.0,0.00021917,3]
[366964185,1750601438593,-460.0,0.00021917,3]
[366964186,1750601438603,-460.0,0.00021917,3]
[366964187,1750601438617,-460.0,0.00021917,3]
[366964188,1750601438630,-447.96242688,0.00021917,3]
[366964189,1750601438640,-460.0,0.00021917,3]
[366964190,1750601438650,-428.60512147,0.00021917,3]
[366964191,1750601438660,-460.0,0.00021917,3]
[366964192,1750601438670,-460.0,0.00021917,3]
[366964193,1750601438680,-460.0,0.00021917,3]
[366964194,1750601438690,-460.0,0.00021917,3]
[366964195,1750601438700,-460.0,0.00021917,3]
[366964196,1750601438710,-460.0,0.00021917,3]
[366964197,1750601438721,-247.58598804,0.00021917,3]
[366964198,1750601438731,-460.0,0.00021917,3]
[366964199,1750601438741,-460.0,0.00021917,3]
[366964200,1750601438751,-460.0,0.00021917,3]
[366964201,1750601438761,-402.72819893,0.00021917,3]
[366964202,1750601438777,-460.0,0.00021917,3]
[366964203,1750601438787,-460.0,0.00021917,3]
[366964204,1750601438798,-460.0,0.00021917,3]
[366964205,1750601438808,-315.04373805,0.00021917,3]
[366964206,1750601438818,-460.0,0.00021917,3]
[366964207,1750601438828,-460.0,0.00021917,3]
[366964208,1750601438838,-460.0,0.00021917,3]
[366964209,1750601438849,-460.0,0.00021917,3]
[366964210,1750601438861,-460.0,0.00021917,3]
[366964211,1750601438871,-460.0,0.00021917,3]
[366964212,1750601438881,-460.0,0.00021917,3]
[366964213,1750601438892,-460.0,0.00021917,3]
[366964214,1750601438902,-434.19819781,0.00021917,3]
[366964215,1750601438912,-460.0,0.00021917,3]
[366964216,1750601438922,-460.0,0.00021917,3]
[366964217,1750601438932,-460.0,0.00021917,3]
[366964218,1750601438942,-595.03487809,0.00021917,3]
[366964219,1750601438952,-460.0,0.00021917,3]
[366964220,1750601438962,-460.0,0.00021917,3]
[366964221,1750601438972,-372.18695504,0.00021917,3]
[366964222,1750601438982,-460.0,0.00021917,3]
[366964223,1750601438992,-460.0,0.00021917,3]
[366964224,1750601439002,-460.0,0.00021917,3]
[366964225,1750601439012,-460.0,0.00021917,3]
[366964226,1750601439022,-319.66144819,0.00021917,3]
[366964227,1750601439032,-762.99,0.00021917,3]
[366964228,1750601439041,-762.99,0.00021917,3]
[366964229,1750601439051,-762.99,0.00021917,3]
[366964230,1750601439061,-762.99,0.00021917,3]
[366964231,1750601439071,-762.99,0.00021917,3]
[366964232,1750601439081,-762.99,0.00021917,3]
[366964233,1750601439091,-762.99,0.00021917,3]
[366964234,1750601439100,-762.99,0.00021917,3]
[366964235,1750601439118,-762.99,0.00021917,3]
[366964236,1750601439128,-762.99,0.00021917,3]
[366964237,1750601439138,-762.99,0.00021917,3]
[366964238,1750601439147,-762.99,0.00021917,3]
[366964239,1750601439159,-762.99,0.00021917,3]
[366964240,1750601439169,-762.99,0.00021917,3]
[366964241,1750601439179,-762.99,0.00021917,3]
[366964242,1750601439189,-762.99,0.00021917,3]
[366964243,1750601439198,-762.99,0.00021917,3]
[366964244,1750601439208,-762.99,0.00021917,3]
[366964245,1750601439218,-762.99,0.00021917,3]
[366964246,1750601439227,-762.99,0.00021917,3]
[366964247,1750601439237,-762.99,0.00021917,3]
[366964248,1750601439247,-762.99,0.00021917,3]
[366964249,1750601439257,-762.99,0.00021917,3]
[366964250,1750601439266,-762.99020328,0.00021917,3]
[366964251,1750601439276,-460.0,0.00021917,3]
[366964252,1750601439285,-460.0,0.00021917,3]
[366964253,1750601439295,-460.0,0.00021917,3]
[366964254,1750601439304,-460.0,0.00021917,3]
[366964255,1750601439315,-460.0,0.00021917,3]
[366964256,1750601439324,-460.0,0.00021917,3]
[366964257,1750601439334,-460.0,0.00021917,3]
[366964258,1750601439344,-460.0,0.00021917,3]
[366964259,1750601439355,-460.0,0.00021917,3]
[366964260,1750601439365,-460.0,0.00021917,3]
[366964261,1750601439375,-460.0,0.00021917,3]
[366964262,1750601439385,-460.0,0.00021917,3]
[366964263,1750601439395,-460.0,0.00021917,3]
[366964264,1750601439405,-227.34978104,0.00021917,3]
[366964265,1750601439415,-460.0,0.00021917,3]
[366964266,1750601439424,-460.0,0.00021917,3]
[366964267,1750601439434,-347.85384599,0.00021917,3]
[366964268,1750601439444,-460.0,0.00021917,3]
[366964269,1750601439454,-460.0,0.00021917,3]
[366964270,1750601439463,-460.0,0.00021917,3]
[366964271,1750601439473,-460.0,0.00021917,3]
[366964272,1750601439484,-460.0,0.00021917,3]
[366964273,1750601439494,-460.0,0.00021917,3]
[366964274,1750601439504,-460.0,0.00021917,3]
[366964275,1750601439514,-460.0,0.00021917,3]
[366964276,1750601439524,-460.0,0.00021917,3]
[366964277,1750601439534,-460.0,0.00021917,3]
[366964278,1750601439544,-460.0,0.00021917,3]
[366964279,1750601439554,-460.0,0.00021917,3]
[366964280,1750601439564,-460.0,0.00021917,3]
[366964281,1750601439574,-460.0,0.00021917,3]
[366964282,1750601439585,-460.0,0.00021917,3]
[366964283,1750601439596,-460.0,0.00021917,3]
[366964284,1750601439607,-460.0,0.00021917,3]
[366964285,1750601439618,-460.0,0.00021917,3]
[366964286,1750601439628,-460.0,0.00021917,3]
[366964287,1750601439639,-401.19992392,0.00021917,3]
[366964288,1750601439649,-151.0,0.00021917,2]
[366964289,1750601439659,-151.0,0.00021917,2]
[366964290,1750601439669,-151.0,0.00021917,2]
[366964291,1750601439680,-151.0,0.00021917,2]
[366964292,1750601439691,-151.0,0.00021917,2]
[366964293,1750601439701,-151.0,0.00021917,2]
[366964294,1750601439711,-151.0,0.00021917,2]
[366964295,1750601439722,-151.0,0.00021917,2]
[366964296,1750601439734,-151.0,0.00021917,2]
[366964297,1750601439744,-151.0,0.00021917,2]
[366964298,1750601439754,-202.515801,0.00021917,2]
[366964299,1750601439765,-360.09205893,0.00021917,3]
[366964300,1750601439775,-460.0,0.00021917,3]
[366964301,1750601439786,-460.0,0.00021917,3]
[366964302,1750601439796,-337.90854603,0.00021917,3]
[366964303,1750601439807,-460.0,0.00021917,3]
[366964304,1750601439819,-460.0,0.00021917,3]
[366964305,1750601439830,-460.0,0.00021917,3]
[366964306,1750601439840,-460.0,0.00021917,3]
[366964307,1750601439850,-460.0,0.00021917,3]
[366964308,1750601439861,-460.0,0.00021917,3]
[366964309,1750601439872,-460.0,0.00021917,3]
[366964310,1750601439882,-460.0,0.00021917,3]
[366964311,1750601439891,-460.0,0.00021917,3]
[366964312,1750601439901,-250.78244668,0.00021917,3]
[366964313,1750601439911,-460.0,0.00021917,3]
[366964314,1750601439922,-179.02527745,0.00021917,3]
[366964315,1750601439932,-270.896915,0.00021917,2]
[366964316,1750601439942,-270.896915,0.00021917,2]
[366964317,1750601439952,-270.896915,0.00021917,2]
[366964318,1750601439962,-270.896915,0.00021917,2]
[366964319,1750601439973,-270.896915,0.00021917,2]
[366964320,1750601439983,-407.49996781,0.00021917,3]
[366964321,1750601439993,-407.45939242,0.00021917,3]
[366964322,1750601440003,-270.896915,0.00021917,2]
[366964323,1750601440081,-270.896915,0.00021917,2]
[366964324,1750601440092,-270.896915,0.00021917,2]
[366964325,1750601440102,-270.896915,0.00021917,2]
[366964328,1750601440117,-460.0,0.00021917,3]
[366964329,1750601440128,-270.896917,0.00021917,2]
[366964330,1750601440138,-460.0,0.00021917,3]
[366964331,1750601440148,-460.0,0.00021917,3]
[366964332,1750601440158,-460.0,0.00021917,3]
[366964333,1750601440168,-316.48947406,0.00021917,3]
[366964334,1750601440178,-460.0,0.00021917,3]
[366964335,1750601440188,-170.0,0.00021917,3]
[366964336,1750601440199,-460.0,0.00021917,3]
[366964337,1750601440209,-460.0,0.00021917,3]
[366964338,1750601440219,-460.0,0.00021917,3]
[366964339,1750601440230,-359.76672778,0.00021917,3]
[366964340,1750601440240,-460.0,0.00021917,3]
[366964341,1750601440250,-460.0,0.00021917,3]
[366964342,1750601440260,-406.0051348,0.00021917,3]
[366964343,1750601440270,-460.0,0.00021917,3]
[366964344,1750601440279,-460.0,0.00021917,3]
[366964345,1750601440289,-460.0,0.00021917,3]
[366964346,1750601440299,-460.0,0.00021917,3]
[366964347,1750601440309,-460.0,0.00021917,3]
[366964348,1750601440319,-366.18635117,0.00021917,3]
[366964349,1750601440328,-460.0,0.00021917,3]
[366964350,1750601440338,-460.0,0.00021917,3]
[366964351,1750601440347,-460.0,0.00021917,3]
[366964352,1750601440358,-460.0,0.00021917,3]
[366964353,1750601440367,-460.0,0.00021917,3]
[366964354,1750601440377,-460.0,0.00021917,3]
[366964355,1750601440386,-460.0,0.00021917,3]
[366964356,1750601440396,-460.0,0.00021917,3]
[366964357,1750601440405,-460.0,0.00021917,3]
[366964358,1750601440415,-460.0,0.00021917,3]
[366964359,1750601440425,-460.0,0.00021917,3]
[366964360,1750601440435,-350.08803868,0.00021917,3]
[366964361,1750601440445,-577.08,0.00021917,3]
[366964362,1750601440456,-577.08,0.00021917,3]
[366964363,1750601440466,-577.08,0.00021917,3]
[366964364,1750601440475,-577.08,0.00021917,3]
[366964365,1750601440485,-577.08,0.00021917,3]
[366964366,1750601440495,-577.08,0.00021917,3]
[366964367,1750601440506,-577.08,0.00021917,3]
[366964368,1750601440515,-577.08,0.00021917,3]
[366964369,1750601440525,-460.0,0.00021917,3]
[366964370,1750601440536,-577.08,0.00021917,3]
[366964371,1750601440545,-460.0,0.00021917,3]
[366964372,1750601440555,-577.08,0.00021917,3]
[366964373,1750601440566,-451.07285752,0.00021917,3]
[366964374,1750601440576,-577.08,0.00021917,3]
[366964375,1750601440585,-577.08,0.00021917,3]
[366964376,1750601440595,-577.08,0.00021917,3]